fUSD/lending_fUSD_20250113
["ID","MTS","AMOUNT","RATE_DAILY","PERIOD"]
[348844767,1736803843920,-500.0,9.967e-05,2]
[348844768,1736803843930,-500.0,9.967e-05,2]
[348844769,1736803843939,-500.0,9.967e-05,2]
[348844770,1736803843951,-500.0,9.967e-05,2]
[348844771,1736803843960,-500.0,9.967e-05,2]
[348844772,1736803843970,-500.0,9.967e-05,2]
[348844773,1736803843979,-500.0,9.967e-05,2]
[348844774,1736803843989,-500.0,9.967e-05,2]
[348844775,1736803843999,-500.0,9.967e-05,2]
[348844776,1736803844009,-500.0,9.967e-05,2]
[348844777,1736803844019,-500.0,9.967e-05,2]
[348844778,1736803844029,-500.0,9.967e-05,2]
[348844780,1736803844038,-502.88605029,9.967e-05,2]
[348844781,1736803844048,-523.94884573,9.967e-05,2]
[348844782,1736803844057,-500.0,9.967e-05,2]
[348844783,1736803844066,-500.0,9.967e-05,2]
[348844784,1736803844076,-500.0,9.967e-05,2]
[348844785,1736803844085,-500.0,9.967e-05,2]
[348844786,1736803844096,-500.0,9.967e-05,2]
[348844787,1736803844106,-296.09675034,9.967e-05,2]
[348844788,1736803844115,-500.0,9.967e-05,2]
[348844789,1736803844125,-191.09412807,9.967e-05,2]
[348844790,1736803844135,-500.0,9.967e-05,2]
[348844791,1736803844144,-500.0,9.967e-05,2]
[348844792,1736803844154,-500.0,9.967e-05,2]
[348844793,1736803844163,-500.0,9.967e-05,2]
[348844794,1736803844172,-500.0,9.967e-05,2]
[348844795,1736803844183,-500.0,9.967e-05,2]
[348844796,1736803844192,-500.0,9.967e-05,2]
[348844797,1736803844201,-500.0,9.967e-05,2]
[348844798,1736803844211,-500.0,9.967e-05,2]
[348844799,1736803844220,-500.0,9.967e-05,2]
[348844800,1736803844230,-196.32445441,9.967e-05,2]
[348844801,1736803844240,-500.0,9.967e-05,2]
[348844802,1736803844251,-500.0,9.967e-05,2]
[348844803,1736803844260,-500.0,9.967e-05,2]
[348844804,1736803844270,-1297.66,9.967e-05,2]
[348844805,1736803844279,-500.0,9.967e-05,2]
[348844806,1736803844288,-339.87882113,9.967e-05,2]
[348844807,1736803844297,-500.0,9.967e-05,2]
[348844808,1736803844307,-500.0,9.967e-05,2]
[348844809,1736803844317,-500.0,9.967e-05,2]
[348844810,1736803844327,-500.0,9.967e-05,2]
[348844811,1736803844336,-500.0,9.967e-05,2]
[348844812,1736803844346,-508.09753181,9.967e-05,2]
[348844813,1736803844355,-500.0,9.967e-05,2]
[348844814,1736803844365,-500.0,9.967e-05,2]
[348844815,1736803844374,-500.0,9.967e-05,2]
[348844816,1736803844385,-500.72510632,9.967e-05,2]
[348844817,1736803844394,-1010.34,9.967e-05,2]
[348844818,1736803844403,-500.0,9.967e-05,2]
[348844819,1736803844414,-500.0,9.967e-05,2]
[348844820,1736803844423,-500.0,9.967e-05,2]
[348844821,1736803844441,-500.0,9.967e-05,2]
[348844822,1736803844452,-500.0,9.967e-05,2]
[348844823,1736803844462,-500.0,9.967e-05,2]
[348844824,1736803844472,-500.0,9.967e-05,2]
[348844825,1736803844482,-501.23568003,9.967e-05,2]
[348844826,1736803844491,-500.7578383,9.967e-05,2]
[348844827,1736803844500,-618.68613004,9.967e-05,2]
[348844828,1736803844510,-501.71418664,9.967e-05,2]
[348844829,1736803844519,-502.01780619,9.967e-05,2]
[348844830,1736803844529,-505.14539709,9.967e-05,2]
[348844831,1736803844539,-500.0,9.967e-05,2]
[348844832,1736803844548,-500.0,9.967e-05,2]
[348844833,1736803844558,-500.0,9.967e-05,2]
[348844834,1736803844567,-500.0,9.967e-05,2]
[348844835,1736803844577,-500.0,9.967e-05,2]
[348844836,1736803844587,-161.24793689,9.967e-05,2]
[348844837,1736803844598,-500.0,9.967e-05,2]
[348844838,1736803844609,-500.0,9.967e-05,2]
[348844839,1736803844618,-500.0,9.967e-05,2]
[348844840,1736803844628,-500.0,9.967e-05,2]
[348844841,1736803844638,-500.0,9.967e-05,2]
[348844842,1736803844647,-500.0,9.967e-05,2]
[348844843,1736803844657,-500.0,9.967e-05,2]
[348844844,1736803844667,-500.0,9.967e-05,2]
[348844845,1736803844676,-500.0,9.967e-05,2]
[348844846,1736803844686,-500.0,9.967e-05,2]
[348844847,1736803844700,-500.0,9.967e-05,2]
[348844848,1736803844710,-500.0,9.967e-05,2]
[348844849,1736803844719,-500.0,9.967e-05,2]
[348844850,1736803844729,-500.0,9.967e-05,2]
[348844851,1736803844739,-500.0,9.967e-05,2]
[348844852,1736803844748,-500.0,9.967e-05,2]
[348844853,1736803844758,-500.0,9.967e-05,2]
[348844854,1736803844768,-500.0,9.967e-05,2]
[348844855,1736803844779,-500.0,9.967e-05,2]
[348844856,1736803844789,-500.0,9.967e-05,2]
[348844857,1736803844799,-1595.69,9.967e-05,2]
[348844858,1736803844809,-500.0,9.967e-05,2]
[348844859,1736803844819,-500.0,9.967e-05,2]
[348844860,1736803844828,-500.0,9.967e-05,2]
[348844861,1736803844838,-500.0,9.967e-05,2]
[348844862,1736803844849,-500.0,9.967e-05,2]
[348844863,1736803844858,-500.0,9.967e-05,2]
[348844864,1736803844868,-500.0,9.967e-05,2]
[348844865,1736803844878,-500.0,9.967e-05,2]
[348844866,1736803844888,-500.0,9.967e-05,2]
[348844867,1736803844897,-500.0,9.967e-05,2]
[348844868,1736803844907,-500.0,9.967e-05,2]
[348844869,1736803844916,-500.0,9.967e-05,2]
[348844870,1736803844926,-500.92641991,9.967e-05,2]
[348844871,1736803844936,-500.0,9.967e-05,2]
[348844872,1736803844945,-500.0,9.967e-05,2]
[348844873,1736803844955,-2683.47,9.967e-05,2]
[348844874,1736803844966,-500.0,9.967e-05,2]
[348844875,1736803844976,-500.0,9.967e-05,2]
[348844876,1736803844985,-500.0,9.967e-05,2]
[348844877,1736803844995,-500.0,9.967e-05,2]
[348844878,1736803845005,-500.0,9.967e-05,2]
[348844879,1736803845015,-500.0,9.967e-05,2]
[348844880,1736803845024,-500.0,9.967e-05,2]
[348844881,1736803845034,-500.0,9.967e-05,2]
[348844882,1736803845043,-500.0,9.967e-05,2]
[348844883,1736803845053,-500.0,9.967e-05,2]
[348844884,1736803845062,-500.0,9.967e-05,2]
[348844885,1736803845071,-500.0,9.967e-05,2]
[348844886,1736803845081,-500.0,9.967e-05,2]
[348844887,1736803845091,-500.0,9.967e-05,2]
[348844888,1736803845102,-500.0,9.967e-05,2]
[348844889,1736803845112,-1649.16,9.967e-05,2]
[348844890,1736803845121,-500.0,9.967e-05,2]
[348844891,1736803845131,-500.0,9.967e-05,2]
[348844892,1736803845141,-639.76,9.967e-05,2]
[348844893,1736803845150,-500.0,9.967e-05,2]
[348844894,1736803845160,-500.0,9.967e-05,2]
[348844895,1736803845170,-500.94369719,9.967e-05,2]
[348844896,1736803845179,-500.95048896,9.967e-05,2]
[348844897,1736803845188,-500.0,9.967e-05,2]
[348844898,1736803845197,-500.0,9.967e-05,2]
[348844899,1736803845207,-500.0,9.967e-05,2]
[348844900,1736803845216,-500.0,9.967e-05,2]
[348844901,1736803845226,-2421.26,9.967e-05,2]
[348844902,1736803845235,-500.0,9.967e-05,2]
[348844903,1736803845245,-1700.4,9.967e-05,2]
[348844904,1736803845254,-500.0,9.967e-05,2]
[348844905,1736803845264,-501.25576073,9.967e-05,2]
[348844906,1736803845273,-500.49843299,9.967e-05,2]
[348844907,1736803845283,-500.0,9.967e-05,2]
[348844908,1736803845293,-500.0,9.967e-05,2]
[348844909,1736803845302,-500.0,9.967e-05,2]
[348844910,1736803845312,-500.0,9.967e-05,2]
[348844911,1736803845321,-500.0,9.967e-05,2]
[348844912,1736803845331,-500.0,9.967e-05,2]
[348844913,1736803845341,-500.0,9.967e-05,2]
[348844914,1736803845353,-500.0,9.967e-05,2]
[348844915,1736803845363,-500.0,9.967e-05,2]
[348844916,1736803845372,-501.63474319,9.967e-05,2]
[348844917,1736803845382,-522.84,9.967e-05,2]
[348844918,1736803845392,-500.0,9.967e-05,2]
[348844919,1736803845402,-500.0,9.967e-05,2]
[348844920,1736803845411,-500.0,9.967e-05,2]
[348844921,1736803845420,-500.0,9.967e-05,2]
[348844922,1736803845429,-500.0,9.967e-05,2]
[348844923,1736803845439,-500.0,9.967e-05,2]
[348844924,1736803845448,-958.39,9.967e-05,2]
[348844925,1736803845457,-500.0,9.967e-05,2]
[348844926,1736803845467,-500.0,9.967e-05,2]
[348844927,1736803845476,-500.0,9.967e-05,2]
[348844928,1736803845485,-500.0,9.967e-05,2]
[348844929,1736803845494,-1772.85,9.967e-05,2]
[348844930,1736803845504,-500.0,9.967e-05,2]
[348844931,1736803845513,-500.0,9.967e-05,2]
[348844932,1736803845523,-500.0,9.967e-05,2]
[348844933,1736803845533,-500.0,9.967e-05,2]
[348844934,1736803845542,-590.92,9.967e-05,2]
[348844935,1736803845552,-500.0,9.967e-05,2]
[348844936,1736803845562,-500.0,9.967e-05,2]
[348844937,1736803845571,-500.0,9.967e-05,2]
[348844938,1736803845581,-500.0,9.967e-05,2]
[348844939,1736803845590,-500.0,9.967e-05,2]
[348844940,1736803845601,-500.0,9.967e-05,2]
[348844941,1736803845611,-500.0,9.967e-05,2]
[348844942,1736803845620,-1537.56,9.967e-05,2]
[348844943,1736803845630,-500.0,9.967e-05,2]
[348844944,1736803845640,-500.0,9.967e-05,2]
[348844945,1736803845649,-500.0,9.967e-05,2]
[348844946,1736803845659,-500.0,9.967e-05,2]
[348844947,1736803845669,-500.0,9.967e-05,2]
[348844948,1736803845678,-500.0,9.967e-05,2]
[348844949,1736803845688,-2165.26,9.967e-05,2]
[348844950,1736803845701,-500.0,9.967e-05,2]
[348844951,1736803845711,-264.47353235,9.967e-05,2]
[348844952,1736803845720,-500.0,9.967e-05,2]
[348844953,1736803845729,-500.0,9.967e-05,2]
[348844954,1736803845741,-500.0,9.967e-05,2]
[348844955,1736803845751,-500.0,9.967e-05,2]
[348844956,1736803845761,-500.0,9.967e-05,2]
[348844957,1736803845822,-500.0,9.967e-05,2]
[348844958,1736803845832,-500.0,9.967e-05,2]
[348844959,1736803845841,-500.0,9.967e-05,2]
[348844960,1736803845853,-3878.37,9.967e-05,2]
[348844961,1736803845863,-500.0,9.967e-05,2]
[348844962,1736803845872,-500.0,9.967e-05,2]
[348844963,1736803845881,-500.0,9.967e-05,2]
[348844964,1736803845890,-500.0,9.967e-05,2]
[348844965,1736803845900,-500.0,9.967e-05,2]
[348844966,1736803845910,-500.0,9.967e-05,2]
[348844967,1736803845919,-1048.04,9.967e-05,2]
[348844968,1736803845928,-500.0,9.967e-05,2]
[348844969,1736803845937,-500.0,9.967e-05,2]
[348844970,1736803845947,-224.22598151,9.967e-05,2]
[348844971,1736803845957,-500.0,9.967e-05,2]
[348844972,1736803845967,-936.28,9.967e-05,2]
[348844973,1736803845976,-1671.83,9.967e-05,2]
[348844974,1736803845986,-249.91575048,9.967e-05,2]
[348844975,1736803845996,-500.0,9.967e-05,2]
[348844976,1736803846005,-500.0,9.967e-05,2]
[348844977,1736803846014,-500.0,9.967e-05,2]
[348844978,1736803846024,-508.22076774,9.967e-05,2]
[348844979,1736803846033,-185.21975647,9.967e-05,2]
[348844980,1736803846043,-500.0,9.967e-05,2]
[348844981,1736803846053,-500.0,9.967e-05,2]
[348844982,1736803846063,-501.46286482,9.968e-05,2]
[348844983,1736803846072,-500.96049419,9.968e-05,2]
[348844984,1736803846082,-500.0,9.968e-05,2]
[348844985,1736803846092,-500.0,9.968e-05,2]
[348844986,1736803846106,-501.55176228,9.968e-05,2]
[348844987,1736803846115,-500.0,9.968e-05,2]
[348844988,1736803846125,-500.0,9.968e-05,2]
[348844989,1736803846135,-617.10356608,9.968e-05,2]
[348844990,1736803846145,-500.0,9.968e-05,2]
[348844991,1736803846154,-500.0,9.968e-05,2]
[348844992,1736803846164,-341.38930594,9.968e-05,2]
[348844993,1736803846173,-500.0,9.968e-05,2]
[348844994,1736803846183,-500.0,9.968e-05,2]
[348844995,1736803846193,-500.0,9.968e-05,2]
[348844996,1736803846203,-500.0,9.968e-05,2]
[348844997,1736803846212,-642.92345324,9.968e-05,2]
[348844998,1736803846222,-500.0,9.968e-05,2]
[348845000,1736803846232,-500.0,9.968e-05,2]
[348845001,1736803846241,-500.0,9.968e-05,2]
[348845002,1736803846251,-500.0,9.968e-05,2]
[348845003,1736803846260,-500.0,9.968e-05,2]
[348845004,1736803846269,-500.0,9.968e-05,2]
[348845005,1736803846279,-500.0,9.968e-05,2]
[348845006,1736803846289,-500.0,9.968e-05,2]
[348845008,1736803846299,-300.0,9.968e-05,2]
[348845010,1736803846308,-500.0,9.968e-05,2]
[348845011,1736803846317,-381.93051924,9.968e-05,2]
[348845012,1736803846327,-500.0,9.968e-05,2]
[348845013,1736803846337,-500.0,9.968e-05,2]
[348845014,1736803846352,-500.0,9.968e-05,2]
[348845016,1736803846362,-500.0,9.968e-05,2]
[348845018,1736803846371,-500.0,9.968e-05,2]
[348845019,1736803846380,-500.0,9.968e-05,2]
[348845021,1736803846390,-500.0,9.968e-05,2]
[348845023,1736803846399,-500.0,9.968e-05,2]
[348845025,1736803846408,-500.0,9.968e-05,2]
[348845027,1736803846418,-552.67437329,9.968e-05,2]
[348845029,1736803846428,-500.0,9.968e-05,2]
[348845031,1736803846438,-500.0,9.968e-05,2]
[348845032,1736803846447,-500.0,9.968e-05,2]
[348845033,1736803846456,-500.0,9.968e-05,2]
[348845034,1736803846465,-262.12765488,9.968e-05,2]
[348845035,1736803846475,-500.0,9.968e-05,2]
[348845036,1736803846484,-500.0,9.968e-05,2]
[348845037,1736803846493,-500.0,9.968e-05,2]
[348845038,1736803846503,-500.0,9.968e-05,2]
[348845039,1736803846512,-575.68,9.968e-05,2]
[348845040,1736803846521,-500.0,9.968e-05,2]
[348845041,1736803846531,-500.0,9.968e-05,2]
[348845042,1736803846541,-735.44,9.968e-05,2]
[348845043,1736803846551,-500.0,9.968e-05,2]
[348845044,1736803846560,-500.0,9.968e-05,2]
[348845045,1736803846569,-500.0,9.968e-05,2]
[348845046,1736803846579,-500.0,9.968e-05,2]
[348845047,1736803846588,-869.22,9.968e-05,2]
[348845048,1736803846599,-500.0,9.968e-05,2]
[348845049,1736803846608,-909.28,9.968e-05,2]
[348845050,1736803846618,-500.0,9.968e-05,2]
[348845051,1736803846628,-863.21,9.968e-05,2]
[348845052,1736803846637,-500.0,9.968e-05,2]
[348845053,1736803846647,-500.0,9.968e-05,2]
[348845054,1736803846656,-500.0,9.968e-05,2]
[348845055,1736803846666,-500.0,9.968e-05,2]
[348845056,1736803846676,-500.0,9.968e-05,2]
[348845057,1736803846686,-500.0,9.968e-05,2]
[348845058,1736803846696,-596.35254667,9.968e-05,2]
[348845059,1736803846709,-500.0,9.968e-05,2]
[348845060,1736803846719,-500.0,9.968e-05,2]
[348845061,1736803846729,-500.0,9.968e-05,2]
[348845062,1736803846739,-832.89,9.969e-05,2]
[348845063,1736803846751,-931.08,9.969e-05,2]
[348845064,1736803846762,-782.2,9.969e-05,2]
[348845065,1736803846771,-500.0,9.969e-05,2]
[348845066,1736803846781,-1049.3,9.969e-05,2]
[348845067,1736803846790,-745.84,9.969e-05,2]
[348845068,1736803846799,-1763.87,9.969e-05,2]
[348845069,1736803846808,-1501.8,9.969e-05,2]
[348845070,1736803846818,-2145.77,9.969e-05,2]
[348845071,1736803846827,-1474.65,9.969e-05,2]
[348845072,1736803846836,-1962.64,9.969e-05,2]
[348845073,1736803846847,-3686.59,9.969e-05,2]
[348845074,1736803846856,-9947.87,9.969e-05,2]
[348845075,1736803846865,-1376.66,9.969e-05,2]
[348845076,1736803846876,-924.39,9.969e-05,2]
[348845077,1736803846886,-2168.35,9.969e-05,2]
[348845078,1736803846895,-500.0,9.969e-05,2]
[348845079,1736803846905,-760.31,9.969e-05,2]
[348845080,1736803846915,-1463.37,9.969e-05,2]
[348845081,1736803846924,-1632.06,9.969e-05,2]
[348845082,1736803846934,-500.0,9.969e-05,2]
[348845083,1736803846943,-2525.06,9.97e-05,2]
[348845084,1736803846952,-1000.0,9.97e-05,2]
[348845085,1736803846962,-989.14,9.97e-05,2]
[348845086,1736803846971,-500.0,9.97e-05,2]
[348845087,1736803846981,-500.98190831,9.97e-05,2]
[348845088,1736803846990,-2149.49,9.97e-05,2]
[348845089,1736803846999,-365.09069685,9.97e-05,2]
[348845090,1736803847009,-365.09069685,9.971e-05,2]
[348845091,1736803847020,-1395.24891062,9.971e-05,2]
[348845092,1736803847029,-200.0,9.973e-05,2]
[348845093,1736803847038,-151.86968193,9.973e-05,2]
[348845094,1736803847048,-500.0,9.973e-05,2]
[348845095,1736803847058,-649.99565242,9.973e-05,2]
[348845096,1736803847068,-13253.30818526,9.974e-05,2]
[348845097,1736803847077,-759.25170892,9.974e-05,2]
[348845098,1736803847087,-154.82925765,9.975e-05,2]
[348845099,1736803847098,-250.77818581,9.975e-05,2]
[348845100,1736803847107,-200.0,9.975e-05,2]
[348845101,1736803847117,-200.0,9.975e-05,2]
[348845102,1736803847127,-759.25170892,9.977e-05,2]
[348845103,1736803847136,-200.0,9.977e-05,2]
[348845104,1736803847145,-20045.11420479,9.977e-05,2]
[348845105,1736803847154,-200.0,9.977e-05,2]
[348845106,1736803847164,-759.25170892,9.978e-05,2]
[348845107,1736803847175,-649.99565242,9.978e-05,2]
[348845108,1736803847184,-759.25170892,9.979e-05,2]
[348845109,1736803847194,-20045.11420479,9.981e-05,2]
[348845110,1736803847204,-365.09069685,9.981e-05,2]
[348845111,1736803847213,-200.0,9.981e-05,2]
[348845112,1736803847223,-649.99565242,9.982e-05,2]
[348845113,1736803847232,-759.25170892,9.982e-05,2]
[348845114,1736803847241,-649.99565242,9.983e-05,2]
[348845115,1736803847250,-649.99565242,9.984e-05,2]
[348845116,1736803847261,-13253.30818526,9.984e-05,2]
[348845117,1736803847271,-365.09069685,9.984e-05,2]
[348845118,1736803847280,-200.0,9.985e-05,2]
[348845119,1736803847289,-20045.11420479,9.985e-05,2]
[348845120,1736803847298,-200.0,9.987e-05,2]
[348845121,1736803847307,-200.0,9.987e-05,2]
[348845122,1736803847316,-200.0,9.987e-05,2]
[348845123,1736803847326,-200.0,9.987e-05,2]
[348845124,1736803847335,-20045.11420479,9.987e-05,2]
[348845125,1736803847346,-250.77818581,9.988e-05,2]
[348845126,1736803847356,-200.0,9.988e-05,2]
[348845127,1736803847365,-223266.90937386,9.988e-05,2]
[348845128,1736803847374,-200.0,9.989e-05,2]
[348845129,1736803847384,-20045.11420479,9.99e-05,2]
[348845130,1736803847393,-13253.30818526,9.99e-05,2]
[348845131,1736803847402,-32997.2814977,9.99e-05,2]
[348845132,1736803847411,-13253.30818526,9.99e-05,2]
[348845133,1736803847421,-200.0,9.991e-05,2]
[348845134,1736803847431,-1395.24891062,9.991e-05,2]
[348845135,1736803847440,-200.0,9.991e-05,2]
[348845136,1736803847450,-250.77818581,9.992e-05,2]
[348845137,1736803847459,-250.77818581,9.992e-05,2]
[348845138,1736803847468,-649.99565242,9.993e-05,2]
[348845139,1736803847477,-250.77818581,9.993e-05,2]
[348845140,1736803847487,-2480.85,9.993e-05,2]
[348845141,1736803847496,-544.24215145,9.993e-05,2]
[348845142,1736803847505,-1607.92,9.993e-05,2]
[348845143,1736803847515,-4082.95,9.993e-05,2]
[348845144,1736803847524,-1395.24891062,9.993e-05,2]
[348845145,1736803847533,-365.09069685,9.993e-05,2]
[348845146,1736803847543,-13253.30818526,9.993e-05,2]
[348845147,1736803847552,-250.77818581,9.994e-05,2]
[348845148,1736803847561,-1395.24891062,9.996e-05,2]
[348845149,1736803847571,-13253.30818526,9.996e-05,2]
[348845150,1736803847580,-200.0,9.997e-05,2]
[348845151,1736803847589,-1395.24891062,9.997e-05,2]
[348845152,1736803847600,-365.09069685,9.997e-05,2]
[348845153,1736803847609,-20045.11420479,9.998e-05,2]
[348845154,1736803847618,-759.25170892,9.999e-05,2]
[348845155,1736803847628,-1395.24891062,9.999e-05,2]
[348845156,1736803847637,-500.0,9.999e-05,2]
[348845157,1736803847646,-500.0,9.999e-05,2]
[348845158,1736803847656,-540.96,9.999e-05,2]
[348845159,1736803847665,-191.03776272,9.999e-05,2]
[348845160,1736803847675,-200.0,9.999e-05,2]
[348845161,1736803847684,-1715287.83960757,0.0001,2]
[348845162,1736803848502,-500.0,9.898e-05,2]
[348845163,1736803848513,-500.0,9.898e-05,2]
[348845164,1736803848522,-500.0,9.898e-05,2]
[348845165,1736803848532,-500.0,9.898e-05,2]
[348845166,1736803848541,-500.0,9.899e-05,2]
[348845167,1736803848550,-500.0,9.966e-05,2]
[348845168,1736803848559,-2439.5,9.967e-05,2]
[348845169,1736803848569,-780.62983993,9.967e-05,2]
[348845170,1736803848641,-993.92016007,9.967e-05,2]
[348845171,1736803848652,-3761.60763721,0.0001,2]
[348845172,1736803848664,-1390.18522937,0.0001,2]
[348845173,1736803849918,-250.0,8.981e-05,2]
[348845174,1736803849928,-500.0,9.898e-05,2]
[348845175,1736803849938,-500.0,9.898e-05,2]
[348845176,1736803849947,-500.0,9.898e-05,2]
[348845177,1736803849957,-500.0,9.898e-05,2]
[348845178,1736803849966,-500.0,9.898e-05,2]
[348845179,1736803849976,-500.0,9.899e-05,2]
[348845180,1736803849985,-500.0,9.899e-05,2]
[348845181,1736803849995,-554.67015027,9.899e-05,2]
[348845182,1736803850005,-500.0,9.966e-05,2]
[348845183,1736803850015,-500.0,9.967e-05,2]
[348845184,1736803850025,-2436.93428573,0.0001,2]
[348845185,1736803850037,-8113.04340838,0.0001,2]
[348845186,1736803850057,-9428.6644,0.0001,2]
[348845187,1736804179943,150.0,0.00021,30]
[348845190,1736804574095,907.03,8.219e-05,2]
[348845191,1736804673755,-1000.0,8.937e-05,2]
[348845192,1736804673779,-337.45,8.97e-05,2]
[348845193,1736804673802,-1445.05195152,9.3e-05,3]
[348845194,1736804679925,-454.94804848,9.3e-05,3]
[348845195,1736804679954,-3800.0,9.4e-05,3]
[348845196,1736804679978,-5700.0,9.5e-05,3]
[348845197,1736804680002,-45.05195152,9.5e-05,2]
[348845198,1736804693177,-184.95904848,9.5e-05,2]
[348845199,1736804693199,-7700.0,9.6e-05,3]
[348845200,1736804693223,-2115.04095152,9.7e-05,3]
[348845201,1736804722721,-300.0,9.699e-05,2]
[348845202,1736804722749,-7484.95904848,9.7e-05,3]
[348845203,1736804722772,-2215.04095152,9.7e-05,2]
[348845204,1736804723935,-3253.93904848,9.7e-05,2]
[348845205,1736804723961,-306.679,9.7e-05,2]
[348845206,1736804723992,-1427.0,9.7e-05,2]
[348845207,1736804724019,-1223.0,9.701e-05,2]
[348845208,1736804724042,-1900.0,9.8e-05,3]
[348845209,1736804724065,-1000.0,9.8e-05,2]
[348845210,1736804724087,-150.0,9.863e-05,2]
[348845211,1736804724110,-150.0,9.896e-05,2]
[348845212,1736804724132,-589.38195152,9.897e-05,2]
[348845213,1736804725834,-10000.0,9.897e-05,2]
[348845214,1736804727147,-6232.44342279,9.897e-05,2]
[348845215,1736804727168,-454.09180631,9.897e-05,2]
[348845216,1736804727189,-371.26987948,9.897e-05,2]
[348845217,1736804727211,-500.0,9.897e-05,2]
[348845218,1736804727231,-393.5178596,9.897e-05,2]
[348845219,1736804727253,-812.4,9.897e-05,2]
[348845220,1736804727274,-500.0,9.897e-05,2]
[348845221,1736804727295,-500.0,9.897e-05,2]
[348845222,1736804727316,-236.27703182,9.897e-05,2]
[348845223,1736804727659,-263.72296818,9.897e-05,2]
[348845224,1736804727681,-500.0,9.897e-05,2]
[348845225,1736804727703,-500.0,9.897e-05,2]
[348845226,1736804727724,-500.0,9.897e-05,2]
[348845227,1736804727747,-500.0,9.897e-05,2]
[348845228,1736804727768,-500.0,9.897e-05,2]
[348845229,1736804727791,-500.0,9.897e-05,2]
[348845230,1736804727812,-500.0,9.897e-05,2]
[348845231,1736804727833,-500.0,9.897e-05,2]
[348845232,1736804727856,-500.0,9.897e-05,2]
[348845233,1736804727879,-525.85,9.897e-05,2]
[348845234,1736804727900,-500.0,9.897e-05,2]
[348845235,1736804727922,-500.0,9.897e-05,2]
[348845236,1736804727947,-500.0,9.897e-05,2]
[348845237,1736804727970,-500.0,9.897e-05,2]
[348845238,1736804727993,-500.0,9.897e-05,2]
[348845239,1736804728016,-500.0,9.897e-05,2]
[348845240,1736804728040,-500.0,9.897e-05,2]
[348845241,1736804728062,-500.0,9.897e-05,2]
[348845242,1736804728084,-710.42703182,9.897e-05,2]
[348845243,1736804728209,-18.14296818,9.897e-05,2]
[348845244,1736804728231,-500.0,9.897e-05,2]
[348845245,1736804728254,-610.01,9.897e-05,2]
[348845246,1736804728277,-500.0,9.897e-05,2]
[348845247,1736804728299,-500.0,9.897e-05,2]
[348845248,1736804728320,-500.0,9.897e-05,2]
[348845249,1736804728343,-683.07,9.897e-05,2]
[348845250,1736804728366,-500.0,9.897e-05,2]
[348845251,1736804728388,-500.0,9.897e-05,2]
[348845252,1736804728410,-500.0,9.897e-05,2]
[348845253,1736804728431,-500.0,9.897e-05,2]
[348845254,1736804728454,-500.0,9.897e-05,2]
[348845255,1736804728475,-500.0,9.897e-05,2]
[348845256,1736804728496,-500.0,9.897e-05,2]
[348845257,1736804728521,-500.0,9.897e-05,2]
[348845258,1736804728543,-500.0,9.897e-05,2]
[348845259,1736804728565,-500.0,9.897e-05,2]
[348845260,1736804728588,-803.05,9.897e-05,2]
[348845261,1736804728611,-500.0,9.897e-05,2]
[348845262,1736804728632,-385.72703182,9.897e-05,2]
[348845263,1736804728764,-114.27296818,9.897e-05,2]
[348845264,1736804728786,-500.0,9.897e-05,2]
[348845265,1736804728807,-500.0,9.897e-05,2]
[348845266,1736804728830,-500.0,9.897e-05,2]
[348845267,1736804728854,-500.0,9.897e-05,2]
[348845268,1736804728876,-500.0,9.897e-05,2]
[348845269,1736804728900,-500.0,9.897e-05,2]
[348845270,1736804728923,-500.0,9.897e-05,2]
[348845271,1736804728949,-500.0,9.897e-05,2]
[348845272,1736804728972,-500.0,9.897e-05,2]
[348845273,1736804728998,-1696.87,9.897e-05,2]
[348845274,1736804729022,-500.0,9.897e-05,2]
[348845275,1736804729044,-500.0,9.897e-05,2]
[348845276,1736804729066,-500.0,9.897e-05,2]
[348845277,1736804729323,-500.0,9.897e-05,2]
[348845278,1736804729349,-500.0,9.897e-05,2]
[348845279,1736804729371,-500.0,9.897e-05,2]
[348845280,1736804729392,-500.0,9.897e-05,2]